bitfinex/quotes_ETHUSD_20251028
["timestamp","ask_amount","ask_price","bid_price","bid_amount"]
[1761643308293,2.42791479,4119.1,4119.0,0.002]
[1761643309215,2.42711479,4119.1,4119.0,0.002]
[1761643312017,2.66141479,4119.1,4119.0,0.002]
[1761643312517,2.42711479,4119.1,4119.0,0.002]
[1761643313020,0.1208,4119.2,4119.0,0.002]
[1761643313217,2.66201479,4119.1,4119.0,0.002]
[1761643313577,2.42771479,4119.1,4119.0,0.002]
[1761643316514,0.121,4119.3,4119.0,0.002]
[1761643316735,2.42767106,4119.2,4119.0,0.002]
[1761643316936,2.42771479,4119.1,4119.0,0.002]
[1761643318839,2.42771479,4119.1,4119.0,3.7998]
[1761643321908,4.21721479,4119.1,4119.0,0.002]
[1761643322211,4.21721479,4119.1,4117.1,0.012]
[1761643322212,2.42871715,4117.4,4117.1,0.012]
[1761643322546,8.22906084,4117.4,4117.1,0.012]
[1761643322718,4.11161715,4117.4,4117.1,0.012]
[1761643323052,8.35676084,4117.4,4117.1,0.012]
[1761643325561,12.60190453,4117.4,4117.1,0.012]
[1761643326435,12.72376504,4117.4,4117.1,0.012]
[1761643326641,12.60190453,4117.4,4117.1,0.012]
[1761643333178,12.69912936,4117.4,4117.1,0.012]
[1761643333543,12.69832936,4117.4,4117.1,0.012]
[1761643334157,12.69832936,4117.4,4116.6,0.002]
[1761643334348,2.42907112,4116.8,4116.6,0.002]
[1761643334550,2.42907112,4116.8,4116.4,1e-08]
[1761643334551,2.42924814,4116.5,4116.4,1e-08]
[1761643334859,2.42936617,4116.3,4115.1,0.01]
[1761643335053,5.80034369,4116.1,4115.1,0.01]
[1761643335479,8.35752791,4116.1,4115.1,0.01]
[1761643335880,9.21674034,4116.1,4115.1,0.01]
[1761643337675,9.31399283,4116.1,4115.1,0.01]
[1761643339058,2.42960227,4115.9,4115.1,0.01]
[1761643339263,1.960704,4115.6,4115.1,0.01]
[1761643339566,9.08957167,4115.2,4115.1,0.01]
[1761643339753,2.43060619,4114.2,4114.1,0.01]
[1761643340358,2.43060619,4114.2,4114.1,0.4449]
[1761643340782,2.43059591,4114.3,4114.1,0.4449]
[1761643340988,7.53478955,4114.5,4114.1,0.6798]
[1761643341172,2.43060619,4114.2,4114.1,0.6798]
[1761643341385,2.43060619,4114.2,4114.1,0.2449]
[1761643342187,2.43060619,4114.2,4114.1,0.6798]
[1761643342689,2.43060619,4114.2,4114.1,0.01]
[1761643343874,2.43060619,4114.2,4114.1,0.4449]
[1761643344404,5.10435612,4114.5,4114.1,0.4449]
[1761643344573,5.10435612,4114.5,4114.1,0.6798]
[1761643344891,2.43048804,4114.4,4114.2,0.4349]
[1761643345090,2.43054711,4114.3,4114.2,0.4349]
[1761643345467,2.43046894,4114.5,4114.2,0.4349]
[1761643345673,2.43054711,4114.3,4114.2,0.4349]
[1761643346269,1.5552,4115.3,4114.2,0.4349]
[1761643346580,2.43014662,4115.0,4114.3,3.7978]
[1761643346771,1.5552,4115.1,4114.3,3.7978]
[1761643346975,2.43025322,4114.8,4114.4,0.4349]
[1761643347293,2.43031397,4114.7,4114.4,0.4349]
[1761643347496,1.5552,4114.8,4114.4,0.4349]
[1761643347497,2.43037007,4114.6,4114.4,0.4349]
[1761643347816,2.4305039,4114.4,4114.1,0.2449]
[1761643347965,2.43050597,4114.4,4114.1,0.6798]
[1761643348365,2.43054711,4114.3,4114.2,0.4349]
[1761643348664,1.5552,4114.7,4114.2,0.4349]
[1761643349194,0.1208,4114.6,4114.2,0.4349]
[1761643349658,2.55118486,4114.6,4114.2,0.4349]
[1761643349857,1.5552,4114.5,4114.2,0.4349]
[1761643350596,0.1208,4114.6,4114.2,0.4349]
[1761643351371,2.55118732,4114.6,4114.2,0.4349]
[1761643352203,2.4304337,4114.5,4114.2,0.4349]
[1761643352868,2.43048886,4114.4,4114.2,0.4349]
[1761643353065,2.43044649,4114.5,4114.2,0.4349]
[1761643354209,2.55121257,4114.6,4114.2,0.4349]
[1761643354615,2.43043046,4114.5,4114.2,0.4349]
[1761643355115,2.43049168,4114.4,4114.2,0.4349]
[1761643355311,2.43044658,4114.5,4114.2,0.4349]
[1761643356219,2.551183,4114.6,4114.2,0.4349]
[1761643357389,2.43047122,4114.5,4114.2,0.4349]
[1761643358090,2.42967122,4114.5,4114.2,0.4349]
[1761643359409,2.55118009,4114.6,4114.2,0.4349]
[1761643359619,2.43044023,4114.5,4114.2,0.4349]
[1761643360124,2.55118151,4114.6,4114.2,0.4349]
[1761643361425,2.43043073,4114.5,4114.2,0.4349]
[1761643364427,0.1208,4114.6,4114.2,0.4349]
[1761643364728,1.676,4114.9,4114.2,0.5557]
[1761643364921,2.55100114,4114.9,4114.2,3.33199585]
[1761643365121,2.55100114,4114.9,4114.4,0.5]
[1761643365423,2.55099768,4114.9,4114.4,0.5]
[1761643365622,0.1208,4114.9,4114.5,0.4287]
[1761643367034,0.001,4115.1,4114.5,0.4287]
[1761643367234,0.1218,4115.1,4114.5,0.4287]
[1761643368102,2.55188387,4115.1,4114.5,0.4287]
[1761643368635,2.43020403,4114.9,4114.5,0.4287]
[1761643369439,2.43013371,4115.0,4114.5,0.4287]
[1761643370027,2.55188752,4115.1,4114.5,0.81127441]
[1761643370460,2.55188752,4115.1,4114.6,0.4287]
[1761643370764,2.43014104,4115.0,4114.6,0.4287]
[1761643371261,2.55188823,4115.1,4114.6,0.4287]
[1761643371634,0.001,4115.1,4114.7,3.7978]
[1761643371957,0.001,4115.1,4114.8,0.1208]
[1761643372164,0.001,4115.1,4114.8,0.5495]
[1761643372748,0.001,4115.1,4114.8,0.1208]
[1761643372952,2.43108467,4115.1,4114.8,0.1208]
[1761643373441,0.001,4115.1,4114.8,0.5495]
[1761643373640,0.001,4115.1,4114.9,0.4287]
[1761643376061,2.43108213,4115.1,4114.9,0.4287]
[1761643376273,2.43013365,4115.0,4114.8,0.1208]
[1761643376567,2.43108854,4115.1,4114.8,0.5495]
[1761643376938,2.43108854,4115.1,4114.8,0.1208]
[1761643377138,2.43108854,4115.1,4114.9,0.4287]
[1761643378573,2.43013365,4115.0,4114.9,0.4287]
[1761643380985,2.43019271,4114.9,4114.6,0.4287]
[1761643382697,2.42939271,4114.9,4114.6,0.4287]
[1761643383193,2.43107565,4115.1,4114.6,0.4287]
[1761643383363,2.43029325,4114.8,4114.5,0.1208]
[1761643384174,2.43029325,4114.8,4114.5,0.5495]
[1761643384681,2.43013365,4115.0,4114.6,0.4703]
[1761643385059,2.43019895,4114.9,4114.6,0.4703]
[1761643385378,0.001,4115.1,4114.6,0.4703]
[1761643385379,2.43014416,4115.0,4114.6,0.4703]
[1761643386145,0.001,4115.1,4114.7,3.7978]
[1761643386508,0.001,4115.1,4115.0,2.43013365]
[1761643386665,0.001,4115.1,4115.0,6.63343765]
[1761643386982,1.216,4116.0,4115.5,2.83534241]
[1761643387480,1.216,4116.0,4115.5,3.30554241]
[1761643387663,1.216,4116.0,4115.5,4.03868665]
[1761643388575,0.001,4115.8,4115.5,4.03868665]
[1761643388879,0.001,4115.8,4115.5,4.06298503]
[1761643389102,0.001,4115.8,4115.5,4.03868665]
[1761643392186,0.001,4115.8,4115.5,7.83648665]
[1761643394914,0.001,4115.8,4115.5,9.39168665]
[1761643395111,0.001,4115.8,4115.5,15.70168665]
[1761643395702,0.001,4115.8,4115.5,11.71664824]
[1761643395909,0.001,4115.8,4115.5,14.14648665]
[1761643396488,0.001,4115.8,4115.5,14.26728665]
[1761643400014,0.001,4115.8,4115.5,3.9186]
[1761643400319,2.43077937,4115.6,4115.5,0.1208]
[1761643400515,0.1096,4115.6,4115.2,0.1208]
[1761643400695,2.53938468,4115.6,4115.2,0.1208]
[1761643400879,0.1096,4115.6,4115.2,0.1208]
[1761643401294,0.1096,4115.6,4115.2,2.55076181]
[1761643401492,0.001,4115.6,4115.2,0.1208]
[1761643401717,0.001,4115.6,4115.5,0.1208]
[1761643402116,0.001,4115.6,4115.5,0.591]
[1761643402300,0.001,4115.6,4115.5,2.95614241]
[1761643402617,0.001,4115.6,4115.5,3.42634241]
[1761643403690,0.001,4115.6,4115.5,0.526304]
[1761643403918,0.001,4115.6,4115.5,0.996504]
[1761643404299,0.001,4115.6,4115.5,0.526304]
[1761643404505,0.001,4115.6,4115.5,3.42634241]
[1761643404930,0.001,4115.6,4115.5,4.06406339]
[1761643406627,0.001,4115.6,4115.5,7.86186339]
[1761643406994,0.0002,4115.6,4115.5,7.86186339]
[1761643407396,0.0002,4115.6,4115.5,4.324104]
[1761643408328,2.52899094,4115.6,4115.1,0.002]
[1761643408504,0.0992,4115.6,4115.1,0.002]
[1761643408709,2.52898729,4115.6,4115.1,0.002]
[1761643410561,2.42984019,4115.5,4115.1,0.002]
[1761643411030,0.0992,4115.6,4115.1,0.002]
[1761643411031,2.52899161,4115.6,4115.1,0.002]
[1761643411228,0.0002,4115.6,4115.1,0.002]
[1761643411435,0.0002,4115.6,4115.1,0.7003]
[1761643411597,0.0002,4115.6,4115.1,0.35560458]
[1761643411802,2.42998863,4115.6,4115.1,0.4722]
[1761643412015,2.53015467,4115.5,4115.1,0.002]
[1761643412228,2.42992932,4115.4,4115.1,0.002]
[1761643412734,2.53015449,4115.5,4115.1,0.002]
[1761643413133,2.42990767,4115.4,4115.1,0.002]
[1761643413428,2.53015727,4115.5,4115.1,0.002]
[1761643416134,2.42999918,4115.6,4115.1,0.002]
[1761643416342,2.42983868,4115.5,4115.1,0.002]
[1761643417335,2.53029848,4115.6,4115.1,0.002]
[1761643418337,0.0002,4115.6,4115.3,0.1208]
[1761643418827,0.0002,4115.6,4115.3,0.5736]
[1761643419542,0.0002,4115.6,4115.3,0.1208]
[1761643420836,2.42999175,4115.6,4115.3,0.1208]
[1761643421336,0.0002,4115.6,4115.3,0.1208]
[1761643422046,2.42998664,4115.6,4115.3,0.1208]
[1761643422342,0.0002,4115.6,4115.3,0.1208]
[1761643426611,0.0002,4115.6,4115.3,0.5736]
[1761643427034,0.0002,4115.6,4115.5,0.1208]
[1761643427233,0.0002,4115.6,4115.5,0.5736]
[1761643431383,0.0002,4115.6,4115.5,0.1208]
[1761643431579,0.0004,4115.8,4115.5,0.1208]
[1761643432573,0.0004,4115.8,4115.6,0.4528]
[1761643433578,0.0004,4115.8,4115.7,0.405504]
[1761643433768,0.0004,4115.8,4115.5,0.1208]
[1761643433970,0.3296,4115.8,4115.5,0.1208]
[1761643434172,0.0004,4115.8,4115.5,0.1208]
[1761643436987,0.099,4115.7,4115.5,0.1208]
[1761643437463,2.43007088,4115.8,4115.5,0.1208]
[1761643437661,2.52907088,4115.8,4115.5,0.1208]
[1761643439070,2.52875303,4115.7,4115.5,0.1208]
[1761643439267,2.42977937,4115.6,4115.5,0.1228]
[1761643439468,2.52877937,4115.6,4115.5,0.002]
[1761643440497,0.099,4115.6,4115.5,0.002]
[1761643440704,2.4297432,4115.7,4115.5,0.002]
[1761643440915,2.5287432,4115.7,4115.5,0.002]
[1761643441207,2.42977937,4115.6,4115.5,0.002]
[1761643441374,2.52877937,4115.6,4115.5,0.002]
[1761643441580,0.0004,4115.8,4115.5,0.002]
[1761643441788,0.0004,4115.8,4115.5,0.4548]
[1761643442216,0.0004,4115.8,4115.6,0.405504]
[1761643442376,0.0004,4115.8,4115.7,2.83522433]
[1761643442574,0.0004,4115.8,4115.7,3.28802433]
[1761643443070,0.0004,4115.8,4115.7,7.5379348]
[1761643443911,0.0004,4115.8,4115.7,12.8909348]
[1761643444079,0.0004,4115.8,4115.7,10.21606863]
[1761643444281,0.0004,4115.8,4115.7,14.4659791]
[1761643444615,0.0004,4115.8,4115.7,10.21606863]
[1761643445777,0.0004,4115.8,4115.7,14.4659791]
[1761643447309,0.0004,4115.8,4115.7,10.21606863]
[1761643447880,0.001,4116.3,4116.0,6.63144724]
[1761643448243,0.001,4116.3,4116.0,8.52434843]
[1761643448452,0.001,4116.3,4116.0,8.95194843]
[1761643448627,0.001,4116.3,4116.0,6.52240519]
[1761643449134,0.001,4116.3,4116.0,8.95194843]
[1761643449455,0.001,4116.3,4116.0,9.07274843]
[1761643449848,0.001,4116.3,4116.0,6.21560519]
[1761643450354,2.42971359,4115.8,4115.5,0.002]
[1761643450648,2.42966178,4115.8,4115.5,0.002]
[1761643450950,0.3394,4115.7,4115.5,0.002]
[1761643451153,2.42956088,4116.0,4115.5,0.002]
[1761643451557,2.42955635,4116.0,4115.5,0.002]
[1761643452552,2.5473056,4116.1,4115.5,0.002]
[1761643452752,2.42955851,4116.0,4115.5,0.002]
[1761643453118,2.54635851,4116.0,4115.5,0.002]
[1761643453315,2.54640227,4115.9,4115.5,0.002]
[1761643453519,2.77010227,4115.9,4115.5,0.002]
[1761643453749,0.1179,4115.8,4115.5,0.002]
[1761643456060,0.1171,4115.8,4115.5,0.002]
[1761643456355,0.2237,4115.9,4115.5,0.002]
[1761643456557,2.42955802,4116.0,4115.5,0.002]
[1761643457254,2.42960446,4115.9,4115.5,0.002]
[1761643457822,2.43057147,4116.0,4115.5,0.002]
[1761643458028,0.1152,4115.9,4115.5,0.002]
[1761643460352,0.1152,4115.9,4115.7,0.1208]
[1761643460858,2.43057147,4116.0,4115.7,0.1208]
[1761643461040,2.6533613,4115.8,4115.7,0.1208]
[1761643461238,2.42977937,4115.6,4115.5,0.002]
[1761643461553,2.54607937,4115.6,4115.5,0.002]
[1761643472072,2.42977937,4115.6,4115.5,0.002]
[1761643474066,2.54607937,4115.6,4115.5,0.002]
[1761643476968,2.42977937,4115.6,4115.5,0.002]
[1761643477478,2.54607937,4115.6,4115.5,0.002]
[1761643480507,2.54527937,4115.6,4115.5,0.002]
[1761643481013,2.42897937,4115.6,4115.5,0.002]
[1761643481321,2.54527937,4115.6,4115.5,0.002]
[1761643490290,2.54527937,4115.6,4115.5,0.0748]
[1761643492201,4.10047937,4115.6,4115.5,0.0748]
[1761643498217,4.10047937,4115.6,4115.5,1e-08]
[1761643501346,4.19773588,4115.6,4115.5,1e-08]
[1761643501672,4.19773588,4115.6,4114.6,0.002]
[1761643501673,2.4300961,4115.1,4114.6,0.002]
[1761643501956,9.30373365,4114.7,4114.6,0.002]
[1761643502356,9.42843365,4114.7,4114.6,0.002]
[1761643505022,9.42763365,4114.7,4114.6,0.002]
[1761643508430,3.9855699,4114.6,4114.5,1e-08]
[1761643508630,4.1102699,4114.6,4114.5,1e-08]
[1761643510463,4.2075626,4114.6,4114.5,1e-08]
[1761643514137,4.1102699,4114.6,4114.5,1e-08]
[1761643521786,8.36703746,4114.6,4114.5,1e-08]
[1761643523271,3.9855699,4114.6,4114.5,1e-08]
[1761643524397,4.1112699,4114.6,4114.5,1e-08]
[1761643527116,3.9855699,4114.6,4114.5,1e-08]
[1761643528586,4.1112699,4114.6,4114.5,1e-08]
[1761643528800,4.1122699,4114.6,4114.5,1e-08]
[1761643529389,4.1114699,4114.6,4114.5,1e-08]
[1761643534290,3.9857699,4114.6,4114.5,1e-08]
[1761643542041,5.2007699,4114.6,4114.5,1e-08]
[1761643545733,5.2007699,4114.6,4114.5,0.45840001]
[1761643545941,2.4305699,4114.6,4114.5,0.45840001]
[1761643546857,0.001,4114.6,4114.5,0.45840001]
[1761643547975,2.4313699,4114.6,4114.5,0.45840001]
[1761643548843,0.001,4114.6,4114.5,0.45840001]
[1761643549451,2.4313699,4114.6,4114.5,0.45840001]
[1761643551178,0.001,4114.6,4114.5,0.45840001]
[1761643551580,2.4313699,4114.6,4114.5,0.45840001]
[1761643551942,0.001,4114.6,4114.5,0.45840001]
[1761643552276,0.001,4114.6,4114.5,0.57920001]
[1761643552662,2.4313699,4114.6,4114.5,0.57920001]
[1761643553948,2.4305699,4114.6,4114.5,0.57920001]
[1761643556575,0.0002,4114.6,4114.5,0.57920001]
[1761643556775,2.4305699,4114.6,4114.5,0.57920001]
[1761643557578,0.0002,4114.6,4114.5,0.57920001]
[1761643557983,2.4305699,4114.6,4114.5,0.57920001]
[1761643558353,0.0002,4114.6,4114.5,0.57920001]
[1761643558783,2.4305699,4114.6,4114.5,0.57920001]
[1761643561284,2.4305699,4114.6,4114.5,0.12080001]
[1761643562070,2.4305699,4114.6,4114.5,0.57920001]
[1761643562688,2.4305699,4114.6,4114.5,0.12080001]
[1761643562875,0.0002,4114.6,4114.5,0.45840001]
[1761643563555,0.0002,4114.6,4114.5,0.57920001]
[1761643564296,0.0002,4114.6,4114.5,1.1456987]
[1761643564654,0.0002,4114.6,4114.5,1.5512027]
[1761643564854,0.0002,4114.6,4114.5,3.41513298]
[1761643566495,0.0002,4114.6,4114.5,0.98470401]
[1761643566863,0.0002,4114.6,4114.5,0.57920001]
[1761643571920,2.4305699,4114.6,4114.5,0.57920001]
[1761643572913,0.0002,4114.6,4114.5,0.57920001]
[1761643574081,0.0002,4114.6,4114.5,4.37560001]
[1761643574878,2.4305699,4114.6,4114.5,4.37560001]
[1761643575284,2.4305699,4114.6,4114.5,0.57920001]
[1761643575718,0.0002,4114.6,4114.5,0.57920001]
[1761643576621,2.4305699,4114.6,4114.5,0.57920001]
[1761643577807,0.0002,4114.6,4114.5,0.57920001]
[1761643577999,0.0002,4114.6,4114.5,1.03923001]
[1761643578389,2.4297699,4114.6,4114.5,1.03923001]
[1761643579090,2.4297699,4114.6,4114.5,0.58083001]
[1761643580522,2.4297699,4114.6,4114.5,0.50000001]
[1761643580708,2.5583699,4114.6,4114.5,0.50000001]
[1761643581020,2.5593699,4114.6,4114.5,1e-08]
[1761643582687,2.4307699,4114.6,4114.5,1e-08]
[1761643583191,4.1145699,4114.6,4114.5,1e-08]
[1761643588971,2.43101981,4113.5,4113.1,0.01]
[1761643589263,3.98639712,4113.2,4113.1,0.01]
[1761643589641,4.11559712,4113.2,4113.1,0.01]
[1761643590155,9.22130827,4113.2,4113.1,0.01]
[1761643590455,9.22130827,4113.2,4113.1,1e-08]
[1761643592947,9.66540827,4113.2,4113.1,1e-08]
[1761643594437,4.43049712,4113.2,4113.1,1e-08]
[1761643594643,9.53620827,4113.2,4113.1,1e-08]
[1761643594951,9.66540827,4113.2,4113.1,1e-08]
[1761643595743,9.53620827,4113.2,4113.1,1e-08]
[1761643596166,9.66540827,4113.2,4113.1,1e-08]
[1761643596361,9.53620827,4113.2,4113.1,1e-08]
[1761643597286,9.66540827,4113.2,4113.1,1e-08]
[1761643597657,9.66540827,4113.2,4113.1,0.00200001]
[1761643598091,4.43049712,4113.2,4113.1,0.00200001]
[1761643598292,9.66540827,4113.2,4113.1,0.00200001]
[1761643598754,9.22130827,4113.2,4113.1,0.00200001]
[1761643599472,9.09210827,4113.2,4113.1,0.00200001]
[1761643599679,9.22130827,4113.2,4113.1,0.00200001]
[1761643601375,4.11559712,4113.2,4113.1,0.00200001]
[1761643602971,4.11479712,4113.2,4113.1,0.00200001]
[1761643603693,9.22050827,4113.2,4113.1,0.00200001]
[1761643605702,9.31783175,4113.2,4113.1,0.00200001]
[1761643606259,7.53720384,4112.7,4112.6,0.002]
[1761643606456,9.09240384,4112.7,4112.6,0.002]
[1761643606793,9.21110384,4112.7,4112.6,0.002]
[1761643612311,9.21110384,4112.7,4112.1,1e-08]
[1761643612312,2.43178833,4112.2,4112.1,1e-08]
[1761643612471,7.53749948,4112.2,4112.1,1e-08]
[1761643612800,9.21139948,4112.2,4112.1,1e-08]
[1761643613013,9.43629948,4112.2,4112.1,1e-08]
[1761643613300,9.21139948,4112.2,4112.1,1e-08]
[1761643615596,9.21139948,4112.2,4112.1,0.00200001]
[1761643617206,9.09269948,4112.2,4112.1,0.00200001]
[1761643617408,9.21139948,4112.2,4112.1,0.00200001]
[1761643618784,3.98704747,4112.1,4111.6,1e-08]
[1761643618986,7.7651952,4111.7,4111.6,1e-08]
[1761643619176,2.43279406,4110.5,4110.1,0.2349]
[1761643619404,7.53850521,4110.5,4110.4,0.5092]
[1761643619795,9.09370521,4110.5,4110.4,0.5092]
[1761643620218,3.98799406,4110.5,4110.4,0.05]
[1761643620387,9.09370521,4110.5,4110.4,0.5092]
[1761643620987,9.09370521,4110.5,4110.4,0.05]
[1761643621206,2.43291243,4110.3,4109.1,0.01]
[1761643621562,2.43291243,4110.3,4109.1,0.6941]
[1761643621563,7.53927486,4109.2,4109.1,0.6941]
[1761643621909,2.43356371,4109.2,4109.1,0.6941]
[1761643622348,2.55516371,4109.2,4109.1,0.6941]
[1761643623251,5.10571115,4109.2,4109.1,0.2349]
[1761643623457,1.5552,4109.3,4109.1,0.6941]
[1761643623816,1.5552,4109.3,4109.2,0.4592]
[1761643624452,2.43303445,4110.1,4109.2,0.4592]
[1761643624660,1.5552,4109.9,4109.2,0.4592]
[1761643625027,2.43297959,4110.2,4109.2,2.89275667]
[1761643625236,5.10571115,4110.4,4109.3,2.43345955]
[1761643625439,7.5385644,4110.4,4110.3,0.2233]
[1761643625756,1.5552,4110.3,4109.4,0.4382]
[1761643625954,2.43303078,4110.2,4109.4,0.4382]
[1761643626124,2.43303615,4110.1,4109.4,0.4382]
[1761643626323,2.433159,4109.9,4109.4,0.78014258]
[1761643626541,2.433159,4109.9,4109.4,0.4382]
[1761643626741,2.43310727,4110.0,4109.4,0.4382]
[1761643626938,2.43314922,4109.9,4109.4,0.4382]
[1761643627369,1.5544,4109.9,4109.1,0.2349]
[1761643627580,2.43356371,4109.2,4109.1,0.2349]
[1761643628085,2.43356371,4109.2,4109.1,0.01]
[1761643628961,7.53927486,4109.2,4109.1,0.01]
[1761643629180,5.10571115,4109.2,4109.1,0.01]
[1761643629344,1.5552,4110.2,4109.1,0.6927]
[1761643629668,6.66091115,4110.2,4109.2,0.4622]
[1761643629848,2.43319052,4109.9,4109.2,0.4622]
[1761643630054,6.66091115,4110.2,4109.2,0.4622]
[1761643630428,2.43311152,4110.0,4109.2,0.4622]
[1761643630859,6.66091115,4110.2,4109.2,0.4622]
[1761643631064,2.43317165,4109.9,4109.2,0.4622]
[1761643631360,5.10571115,4110.6,4110.1,0.2205]
[1761643631558,2.43279406,4110.5,4110.1,0.2205]
[1761643631764,2.43296923,4110.3,4110.2,0.4622]
[1761643631950,3.98799406,4110.5,4110.1,0.2205]
[1761643632156,2.43297163,4110.2,4110.1,0.2205]
[1761643632344,2.43304228,4110.1,4109.8,0.4622]
[1761643633467,2.55464228,4110.1,4109.8,0.4622]
[1761643634176,2.43338189,4109.6,4109.1,0.6947]
[1761643634336,3.98928454,4110.1,4109.1,0.6947]
[1761643634540,3.98923562,4110.1,4109.2,0.4622]
[1761643634737,2.43338461,4109.6,4109.2,0.4622]
[1761643635357,1.5562,4110.1,4109.1,0.2325]
[1761643635358,5.10571115,4109.8,4109.1,0.012]
[1761643635567,2.43350365,4109.4,4109.1,0.012]
[1761643636861,2.43339952,4109.5,4109.1,0.4742]
[1761643637239,2.43345498,4109.4,4109.1,0.4742]
[1761643637659,2.43339933,4109.5,4109.1,0.4742]
[1761643638041,2.43339933,4109.5,4109.1,0.012]
[1761643638375,2.43339933,4109.5,4109.1,0.6947]
[1761643638874,2.43344608,4109.4,4109.1,0.6947]
[1761643639271,2.43344608,4109.4,4109.1,0.4742]
[1761643639974,2.43339142,4109.5,4109.2,0.2205]
[1761643640341,5.10571115,4109.8,4109.2,0.6827]
[1761643640546,2.43333291,4109.6,4109.2,0.6827]
[1761643640851,1.5562,4110.1,4109.3,0.4622]
[1761643641045,1.5562,4110.1,4109.2,0.2205]
[1761643641046,2.43348172,4109.4,4109.2,0.2205]
[1761643641456,2.43348172,4109.4,4109.2,0.6827]
[1761643641784,2.43350448,4109.3,4109.2,0.6827]
[1761643642194,2.43350448,4109.3,4109.2,0.2205]
[1761643642558,5.10571115,4109.8,4109.1,0.012]
[1761643642896,2.4333881,4109.5,4109.1,0.2325]
[1761643643058,2.4335608,4109.3,4109.1,0.2325]
[1761643643242,2.4335608,4109.3,4109.1,0.6947]
[1761643643447,5.10571115,4109.8,4109.1,0.012]
[1761643643648,2.43354098,4109.3,4109.1,0.012]
[1761643643845,6.69880379,4109.4,4109.2,0.4622]
[1761643644066,2.43350448,4109.3,4109.2,0.4622]
[1761643644268,2.43356371,4109.2,4109.1,0.2325]
[1761643644467,2.55516371,4109.2,4109.1,0.012]
[1761643645056,2.55516371,4109.2,4109.1,0.4742]
[1761643645398,2.55516371,4109.2,4109.1,0.6947]
[1761643647361,8.37568256,4109.2,4109.1,0.012]
[1761643648256,8.48488256,4109.2,4109.1,0.012]
[1761643649166,15.30820141,4109.2,4109.1,0.012]
[1761643649395,8.36328256,4109.2,4109.1,0.012]
[1761643650281,12.62860141,4109.2,4109.1,0.012]
[1761643650668,8.36328256,4109.2,4109.1,0.012]
[1761643650988,2.43380062,4108.8,4108.7,0.002]
[1761643651170,12.99273832,4108.8,4108.7,0.002]
[1761643652106,12.99193832,4108.8,4108.7,0.002]
[1761643654699,12.99193832,4108.8,4108.6,0.002]
[1761643654700,4.64836385,4108.7,4108.6,1e-08]
[1761643655009,4.64836385,4108.7,4107.2,0.2232]
[1761643655010,2.4345709,4107.5,4107.2,0.2232]
[1761643655208,2.4345709,4107.5,4107.2,0.6882]
[1761643655209,6.69988975,4107.5,4107.2,0.6882]
[1761643655411,6.69988975,4107.5,4107.2,0.2232]
[1761643655713,1.216,4108.1,4107.4,0.515]
[1761643655915,2.4345709,4107.5,4107.4,0.515]
[1761643656208,2.4343931,4107.8,4107.4,0.515]
[1761643656785,2.4345709,4107.5,4107.4,0.515]
[1761643658113,2.4345709,4107.5,4107.4,0.05]
[1761643658291,2.4345709,4107.5,4107.4,0.515]
[1761643659115,3.98950829,4108.0,4107.4,0.515]
[1761643659313,2.43443708,4107.8,4107.4,0.6366]
[1761643659522,2.4345709,4107.5,4107.4,0.05]
[1761643659719,2.5561709,4107.5,4107.4,0.05]
[1761643659916,2.5561709,4107.5,4107.4,0.515]
[1761643660414,4.1113709,4107.5,4107.4,0.05]
[1761643660587,3.9897709,4107.5,4107.4,0.05]
[1761643662297,2.43474873,4107.2,4107.1,1e-08]
[1761643662607,3.98994873,4107.2,4107.1,1e-08]
[1761643662921,4.43284873,4107.2,4107.1,1e-08]
[1761643663415,3.98994873,4107.2,4107.1,1e-08]
[1761643663602,4.43284873,4107.2,4107.1,1e-08]
[1761643663803,3.98994873,4107.2,4107.1,1e-08]
[1761643664128,2.43474873,4107.2,4107.1,0.68820001]
[1761643664792,3.98994873,4107.2,4107.1,0.68820001]
[1761643665188,3.98994873,4107.2,4107.1,0.22320001]
[1761643665487,3.98994873,4107.2,4107.1,1e-08]
[1761643669922,3.98994873,4107.2,4107.1,0.46500001]
[1761643670122,3.98994873,4107.2,4107.1,1e-08]
[1761643671906,3.98994873,4107.2,4107.1,0.00200001]
[1761643672898,3.98994873,4107.2,4107.1,0.69020001]
[1761643673090,0.1216,4107.2,4107.1,0.69020001]
[1761643673292,2.43459271,4107.5,4107.1,4.48660001]
[1761643673500,0.001,4108.1,4107.2,4.71006]
[1761643673700,2.43462231,4107.5,4107.2,4.71006]
[1761643673905,2.43462231,4107.5,4107.3,0.465]
[1761643674103,2.43451163,4107.6,4107.3,0.465]
[1761643674324,2.43463017,4107.4,4107.3,0.465]
[1761643676296,2.43383017,4107.4,4107.3,0.465]
[1761643678599,2.43383017,4107.4,4107.3,4.2614]
[1761643680537,2.43383017,4107.4,4107.3,3.7964]
[1761643680733,2.43383017,4107.4,4107.3,4.2614]
[1761643680903,2.43457945,4107.5,4107.3,4.2614]
[1761643681254,0.001,4108.1,4107.4,0.465]
[1761643681438,2.4345709,4107.5,4107.4,0.465]
[1761643682533,2.4345709,4107.5,4107.4,4.1902]
[1761643686026,2.4345709,4107.5,4107.1,0.22520001]
[1761643686027,2.43474873,4107.2,4107.1,0.00200001]
[1761643686226,6.70285672,4107.2,4107.1,0.00200001]
[1761643686428,7.14965672,4107.2,4107.1,0.00200001]
[1761643689323,7.55516072,4107.2,4107.1,0.00200001]
[1761643690832,2.43474873,4107.2,4107.1,0.00200001]
[1761643691028,2.43474873,4107.2,4107.1,0.70070001]
[1761643692350,2.43474873,4107.2,4107.1,0.00200001]
[1761643693453,2.43474873,4107.2,4107.1,0.46560001]
[1761643693820,2.43474873,4107.2,4107.1,0.70070001]
[1761643694153,2.43474873,4107.2,4107.1,0.23710001]
[1761643694657,2.43474873,4107.2,4107.1,0.70070001]
[1761643697943,2.43474873,4107.2,4107.1,0.00200001]
[1761643698144,2.55634873,4107.2,4107.1,0.00200001]
[1761643700819,2.55554873,4107.2,4107.1,0.00200001]